Workbook

Sheet Raw data
B1: Raw Data
C2: =COUNT(C6:C55) -> 50 | G2: =COUNT(G6:G55) -> 50
B4: Control Group | F4: Treatment Group
B5: Patient | C5: Effect | D5: Cost | F5: Patient | G5: Effect | H5: Cost
B6: 1 | C6: 5.909207344 | D6: 801.3622719 | F6: 1 | G6: 7.033344269 | H6: 1321.763171
B7: 2 | C7: 5.415548563 | D7: 951.0459198 | F7: 2 | G7: 6.162960052 | H7: 892.8598952
B8: 3 | C8: 5.800325394 | D8: 492.4647653 | F8: 3 | G8: 7.206817627 | H8: 813.7180576
B9: 4 | C9: 5.511829853 | D9: 808.3606803 | F9: 4 | G9: 7.536651611 | H9: 696.611542
B10: 5 | C10: 5.139657974 | D10: 290.8917542 | F10: 5 | G10: 4 | H10: 1019.011707
B11: 6 | C11: 5.775022507 | D11: 375.5329703 | F11: 6 | G11: 4.8 | H11: 1700.207647
B12: 7 | C12: 5.426730871 | D12: 656.9989527 | F12: 7 | G12: 6.077037811 | H12: 1457.951623
B13: 8 | C13: 6.016550064 | D13: 270.4552203 | F13: 8 | G13: 7.923934937 | H13: 591.1001389
B14: 9 | C14: 5.624522686 | D14: 326.9153189 | F14: 9 | G14: 6.302537918 | H14: 624.3058561
B15: 10 | C15: 6.875097275 | D15: 682.5174087 | F15: 10 | G15: 6.631738663 | H15: 1459.305784
B16: 11 | C16: 7.163614273 | D16: 1250.679615 | F16: 11 | G16: 7.325275421 | H16: 1676.611191
B17: 12 | C17: 5.987120152 | D17: 387.2094535 | F17: 12 | G17: 6.270088196 | H17: 539.870322
B18: 13 | C18: 7.190731049 | D18: 365.224439 | F18: 13 | G18: 7.800144196 | H18: 1706.287887
B19: 14 | C19: 5.942542553 | D19: 333.3463982 | F19: 14 | G19: 5.106017113 | H19: 790.9457191
B20: 15 | C20: 5.18457818 | D20: 769.941724 | F20: 15 | G20: 6.398813248 | H20: 526.9806161
B21: 16 | C21: 5.818914175 | D21: 587.5710893 | F21: 16 | G21: 7.291055679 | H21: 943.2144344
B22: 17 | C22: 6.635824203 | D22: 846.2368406 | F22: 17 | G22: 6.429294586 | H22: 1316.924378
B23: 18 | C23: 5.234871387 | D23: 312.7214025 | F23: 18 | G23: 6.123560905 | H23: 611.6815718
B24: 19 | C24: 5.334320545 | D24: 194.4302969 | F24: 19 | G24: 5.547208786 | H24: 762.3994949
B25: 20 | C25: 5.253729105 | D25: 311.7219243 | F25: 20 | G25: 5.454504013 | H25: 1376.149903
B26: 21 | C26: 5.656487465 | D26: 1016.05834 | F26: 21 | G26: 6.363405228 | H26: 958.5332997
B27: 22 | C27: 5.165578127 | D27: 1424.20097 | F27: 22 | G27: 5.45067215 | H27: 780.9718332
B28: 23 | C28: 6.022761345 | D28: 247.7761032 | F28: 23 | G28: 6.912416458 | H28: 810.1689506
B29: 24 | C29: 6.984348297 | D29: 283.4351452 | F29: 24 | G29: 7.21238327 | H29: 886.87876
B30: 25 | C30: 5.574762344 | D30: 917.3130463 | F30: 25 | G30: 6.68434906 | H30: 638.5988962
B31: 26 | C31: 7.211258888 | D31: 1652.972378 | F31: 26 | G31: 5.901889801 | H31: 1665.821704
B32: 27 | C32: 5.404300451 | D32: 1151.545136 | F32: 27 | G32: 5.484531403 | H32: 860.074276
B33: 28 | C33: 6.272904873 | D33: 171.2148856 | F33: 28 | G33: 6.359088898 | H33: 1385.078958
B34: 29 | C34: 6.05113554 | D34: 634.9283873 | F34: 29 | G34: 6.187994003 | H34: 750.5907653
B35: 30 | C35: 5.91305685 | D35: 152.390829 | F35: 30 | G35: 6.192615509 | H35: 593.384903
B36: 31 | C36: 6.152977943 | D36: 229.1617044 | F36: 31 | G36: 6.587087631 | H36: 929.7635232
B37: 32 | C37: 6.566431522 | D37: 403.2728149 | F37: 32 | G37: 5.436487198 | H37: 1580.037574
B38: 33 | C38: 6.092988014 | D38: 1756.990467 | F38: 33 | G38: 6.264240265 | H38: 1117.987112
B39: 34 | C39: 5.923405886 | D39: 171.2388794 | F39: 34 | G39: 7.074949265 | H39: 900.8744869
B40: 35 | C40: 6.840260029 | D40: 308.6168696 | F40: 35 | G40: 5.868963242 | H40: 629.899376
B41: 36 | C41: 7.226216316 | D41: 747.9900384 | F41: 36 | G41: 5.152415276 | H41: 456.6470022
B42: 37 | C42: 5.147778273 | D42: 317.807218 | F42: 37 | G42: 7.844085693 | H42: 693.7742481
B43: 38 | C43: 6.475798607 | D43: 272.8854649 | F43: 38 | G43: 5.075595856 | H43: 834.6300906
B44: 39 | C44: 5.8228302 | D44: 289.654271 | F44: 39 | G44: 7.15202713 | H44: 708.8892914
B45: 40 | C45: 5.532728195 | D45: 1442.735326 | F45: 40 | G45: 3.7 | H45: 296.4930307
B46: 41 | C46: 5.886168957 | D46: 286.3892564 | F46: 41 | G46: 5.34292984 | H46: 669.5723929
B47: 42 | C47: 5.416965485 | D47: 259.0258964 | F47: 42 | G47: 5.219213486 | H47: 740.2935072
B48: 43 | C48: 6.677015781 | D48: 781.4083946 | F48: 43 | G48: 7.650344849 | H48: 917.4358267
B49: 44 | C49: 6.119612694 | D49: 148.6560293 | F49: 44 | G49: 5.200241089 | H49: 517.7566682
B50: 45 | C50: 7.590930939 | D50: 215.4397066 | F50: 45 | G50: 7.239645004 | H50: 982.7522392
B51: 46 | C51: 5.06606245 | D51: 345.6724129 | F51: 46 | G51: 7.622089386 | H51: 1189.798431
B52: 47 | C52: 6.32237339 | D52: 950.4031951 | F52: 47 | G52: 6.614717484 | H52: 800.0816419
B53: 48 | C53: 6.383476257 | D53: 657.8009054 | F53: 48 | G53: 7.270711899 | H53: 1326.701121
B54: 49 | C54: 6.200014591 | D54: 204.5083522 | F54: 49 | G54: 5.796703339 | H54: 842.0186825
B55: 50 | C55: 7.055444717 | D55: 1091.045217 | F55: 50 | G55: 6.372425079 | H55: 1578.153912

Sheet Descriptive analysis
B4: Summary Statistics
D6: Control Group
B7: Statistic | D7: Effect | E7: Cost
B9: Sample Mean
B10: Standard deviation
B11: Standard error
D14: Treatment Group
D15: Effect | E15: Cost
B17: Sample Mean
B18: Standard deviation
B19: Standard error
D23: Difference
D24: Effect (DE) | E24: Cost (DC)
B26: Sample Mean
B27: Standard error
B28: Lower 95% confidence limit
B29: Upper 95% confidence limit
B30: Bootstrap lower confidence limit
B31: Bootstrap upper confidence limit
B34: Correlation (C0,E0) | D34: =+CORREL('Raw data'!C6:C55,'Raw data'!D6:D55) -> 0.08394056902
B35: Correlation (C1,E1) | D35: =+CORREL('Raw data'!G6:G55,'Raw data'!H6:H55) -> 0.1549033486
B36: Correlation (DC, DE) | D36: =+(D35*D19*E19+D34*D11*E11)/(D27*E27) -> 
B37: Covariance (DC, DE) | D37: =+corrdCdE*SEdC*SEdE -> 
B41: ICER:
B43: Confidence limits | D43: Lower | E43: Upper
B44: Confidence box
B45: Filler's method
B46: Bootstrap
B47: Delta method (Taylor series)
B49: Net benefit (as funtion of l)
B50: (see value of lambda in <Bootstrap>)
B51: Confidence limits (as funtion of l)

Sheet Bootstrap
B1: Bootstrap Results
B3: The bootstrap resamples: | J3: Bootstrapped means for the: | AB3: Threshold (l)
AB4: Prob(CE) | AN4: Prob(CE)
C6: Effect | D6: Cost | G6: Effect | H6: Cost | L6: Effect | M6: Cost | P6: Effect | Q6: Cost | S6: DE | T6: DC
B7: means: | C7: =AVERAGE(C12:C62) -> 6.005020185 | D7: =AVERAGE(D12:D62) -> 637.6299461 | G7: =AVERAGE(G12:G62) -> 6.154086475 | H7: =AVERAGE(H12:H62) -> 910.5871755 | K7: means: | L7: =AVERAGE(L12:L1011) ->  | M7: =AVERAGE(M12:M1011) ->  | P7: =AVERAGE(P12:P1011) ->  | Q7: =AVERAGE(Q12:Q1011) ->  | S7: =AVERAGE(S12:S1011) ->  | T7: =AVERAGE(T12:T1011) ->  | V7: =COUNT(V12:V3011) -> 0
AH8: Bootstrapping net benefits
B9: Control Group | F9: Treatment Group | J9: Bootstrap | L9: Control group | P9: Treatment Group | S9: Difference | V9: Ratio: | X9: Descriptive statistics for ICER | AB9: Is it cost-effective? | AE9: Threshold | AF9: Prob[CE(l)] | AH9: Net benefit | AJ9: Descriptive statistics for Net Benefit | AN9: Is it cost-effective?
B10: Patient | C10: Effect | D10: Cost | F10: Patient | G10: Effect | H10: Cost | J10: replication | L10: Effect | M10: Cost | P10: Effect | Q10: Cost | S10: Effect | T10: Cost | V10: (ICER) | AB10: (ICER vs threshold) | AN10: (NB>0)
B12: =+INT(RAND()*50)+1 -> 41 | C12: =+VLOOKUP(B12,control,2,1) -> 5.886168957 | D12: =+VLOOKUP(B12,control,3,1) -> 286.3892564 | F12: =+INT(RAND()*50)+1 -> 32 | G12: =+VLOOKUP(F12,treatment,2,1) -> 5.436487198 | H12: =+VLOOKUP(F12,treatment,3,1) -> 1580.037574 | J12: 1 | X12: Mean | AE12: 0 | AF12: 0 | AJ12: Mean
B13: =+INT(RAND()*50)+1 -> 25 | C13: =+VLOOKUP(B13,control,2,1) -> 5.574762344 | D13: =+VLOOKUP(B13,control,3,1) -> 917.3130463 | F13: =+INT(RAND()*50)+1 -> 41 | G13: =+VLOOKUP(F13,treatment,2,1) -> 5.34292984 | H13: =+VLOOKUP(F13,treatment,3,1) -> 669.5723929 | J13: =J12+1 -> 2 | X13: Median | AE13: 50 | AF13: 0 | AJ13: Median
B14: 6 | C14: 5.775022507 | D14: 375.5329703 | F14: 27 | G14: 5.484531403 | H14: 860.074276 | J14: 3 | X14: 2.5th percentile | AE14: 100 | AF14: 0 | AJ14: 2.5th percentile
B15: 16 | C15: 5.818914175 | D15: 587.5710893 | F15: 17 | G15: 6.429294586 | H15: 1316.924378 | J15: 4 | X15: 97.5th percentile | AE15: 150 | AF15: 0 | AJ15: 97.5th percentile
B16: 46 | C16: 5.06606245 | D16: 345.6724129 | F16: 12 | G16: 6.270088196 | H16: 539.870322 | J16: 5 | X16: min | AE16: 200 | AF16: 0 | AJ16: min
B17: 24 | C17: 6.984348297 | D17: 283.4351452 | F17: 16 | G17: 7.291055679 | H17: 943.2144344 | J17: 6 | X17: max | AE17: 250 | AF17: 0 | AJ17: max
B18: 1 | C18: 5.909207344 | D18: 801.3622719 | F18: 21 | G18: 6.363405228 | H18: 958.5332997 | J18: 7 | AE18: 300 | AF18: 0
B19: 41 | C19: 5.886168957 | D19: 286.3892564 | F19: 3 | G19: 7.206817627 | H19: 813.7180576 | J19: 8 | AE19: 350 | AF19: 0
B20: 49 | C20: 6.200014591 | D20: 204.5083522 | F20: 21 | G20: 6.363405228 | H20: 958.5332997 | J20: 9 | AE20: 400 | AF20: 0
B21: 35 | C21: 6.840260029 | D21: 308.6168696 | F21: 15 | G21: 6.398813248 | H21: 526.9806161 | J21: 10 | X21: Bin Range | Y21: Bin | Z21: Frequency | AE21: 450 | AF21: 0.005 | AJ21: Bin Range | AK21: Bin | AL21: Frequency
B22: 5 | C22: 5.139657974 | D22: 290.8917542 | F22: 22 | G22: 5.45067215 | H22: 780.9718332 | J22: 11 | X22: -15000 | Y22: -20000 | Z22: =FREQUENCY(V12:V1011,Y22:Y62) -> 0 | AE22: 500 | AF22: 0.009 | AJ22: 1000 | AK22: 1000 | AL22: =FREQUENCY(AH12:AH1011,AK22:AK62) -> 0
B23: 27 | C23: 5.404300451 | D23: 1151.545136 | F23: 4 | G23: 7.536651611 | H23: 696.611542 | J23: 12 | X23: =+X22+500 -> -14500 | Y23: -19000 | Z23: 0 | AE23: 550 | AF23: 0.021 | AJ23: =+AJ22-50 -> 950 | AK23: 950 | AL23: 0
B24: 10 | C24: 6.875097275 | D24: 682.5174087 | F24: 18 | G24: 6.123560905 | H24: 611.6815718 | J24: 13 | X24: =+X23+500 -> -14000 | Y24: -18000 | Z24: 0 | AE24: 600 | AF24: 0.028 | AJ24: =+AJ23-50 -> 900 | AK24: 900 | AL24: 0
B25: 41 | C25: 5.886168957 | D25: 286.3892564 | F25: 46 | G25: 7.622089386 | H25: 1189.798431 | J25: 14 | X25: -13500 | Y25: -17000 | Z25: 0 | AE25: 650 | AF25: 0.046 | AJ25: 850 | AK25: 850 | AL25: 0
B26: 50 | C26: 7.055444717 | D26: 1091.045217 | F26: 15 | G26: 6.398813248 | H26: 526.9806161 | J26: 15 | X26: -13000 | Y26: -16000 | Z26: 0 | AE26: 700 | AF26: 0.062 | AJ26: 800 | AK26: 800 | AL26: 0
B27: 48 | C27: 6.383476257 | D27: 657.8009054 | F27: 1 | G27: 7.033344269 | H27: 1321.763171 | J27: 16 | X27: -12500 | Y27: -15000 | Z27: 0 | AE27: 750 | AF27: 0.084 | AJ27: 750 | AK27: 750 | AL27: 0
B28: 5 | C28: 5.139657974 | D28: 290.8917542 | F28: 28 | G28: 6.359088898 | H28: 1385.078958 | J28: 17 | X28: -12000 | Y28: -14000 | Z28: 0 | AE28: 800 | AF28: 0.125 | AJ28: 700 | AK28: 700 | AL28: 0
B29: 46 | C29: 5.06606245 | D29: 345.6724129 | F29: 37 | G29: 7.844085693 | H29: 693.7742481 | J29: 18 | X29: -11500 | Y29: -13000 | Z29: 0 | AE29: 850 | AF29: 0.157 | AJ29: 650 | AK29: 650 | AL29: 0
B30: 48 | C30: 6.383476257 | D30: 657.8009054 | F30: 38 | G30: 5.075595856 | H30: 834.6300906 | J30: 19 | X30: -11000 | Y30: -12000 | Z30: 0 | AE30: 900 | AF30: 0.184 | AJ30: 600 | AK30: 600 | AL30: 0
B31: 17 | C31: 6.635824203 | D31: 846.2368406 | F31: 45 | G31: 7.239645004 | H31: 982.7522392 | J31: 20 | X31: -10500 | Y31: -11000 | Z31: 0 | AE31: 950 | AF31: 0.22 | AJ31: 550 | AK31: 550 | AL31: 0
B32: 30 | C32: 5.91305685 | D32: 152.390829 | F32: 4 | G32: 7.536651611 | H32: 696.611542 | J32: 21 | X32: -10000 | Y32: -10000 | Z32: 0 | AE32: 1000 | AF32: 0.253 | AJ32: 500 | AK32: 500 | AL32: 0
B33: 7 | C33: 5.426730871 | D33: 656.9989527 | F33: 35 | G33: 5.868963242 | H33: 629.899376 | J33: 22 | X33: -9500 | Y33: -9000 | Z33: 0 | AE33: 1050 | AF33: 0.281 | AJ33: 450 | AK33: 450 | AL33: 0
B34: 3 | C34: 5.800325394 | D34: 492.4647653 | F34: 38 | G34: 5.075595856 | H34: 834.6300906 | J34: 23 | X34: -9000 | Y34: -8000 | Z34: 0 | AE34: 1100 | AF34: 0.325 | AJ34: 400 | AK34: 400 | AL34: 0
B35: 26 | C35: 7.211258888 | D35: 1652.972378 | F35: 38 | G35: 5.075595856 | H35: 834.6300906 | J35: 24 | X35: -8500 | Y35: -7000 | Z35: 0 | AE35: 1150 | AF35: 0.36 | AJ35: 350 | AK35: 350 | AL35: 0
B36: 22 | C36: 5.165578127 | D36: 1424.20097 | F36: 35 | G36: 5.868963242 | H36: 629.899376 | J36: 25 | X36: -8000 | Y36: -6000 | Z36: 0 | AE36: 1200 | AF36: 0.394 | AJ36: 300 | AK36: 300 | AL36: 0
B37: 50 | C37: 7.055444717 | D37: 1091.045217 | F37: 7 | G37: 6.077037811 | H37: 1457.951623 | J37: 26 | X37: -7500 | Y37: -5000 | Z37: 0 | AE37: 1250 | AF37: 0.419 | AJ37: 250 | AK37: 250 | AL37: 0
B38: 21 | C38: 5.656487465 | D38: 1016.05834 | F38: 41 | G38: 5.34292984 | H38: 669.5723929 | J38: 27 | X38: -7000 | Y38: -4000 | Z38: 0 | AE38: 1300 | AF38: 0.45 | AJ38: 200 | AK38: 200 | AL38: 0
B39: 11 | C39: 7.163614273 | D39: 1250.679615 | F39: 48 | G39: 7.270711899 | H39: 1326.701121 | J39: 28 | X39: -6500 | Y39: -3000 | Z39: 0 | AE39: 1350 | AF39: 0.468 | AJ39: 150 | AK39: 150 | AL39: 0
B40: 15 | C40: 5.18457818 | D40: 769.941724 | F40: 33 | G40: 6.264240265 | H40: 1117.987112 | J40: 29 | X40: -6000 | Y40: -2000 | Z40: 0 | AE40: 1400 | AF40: 0.489 | AJ40: 100 | AK40: 100 | AL40: 0
B41: 27 | C41: 5.404300451 | D41: 1151.545136 | F41: 9 | G41: 6.302537918 | H41: 624.3058561 | J41: 30 | X41: -5500 | Y41: -1000 | Z41: 0 | AE41: 1450 | AF41: 0.513 | AJ41: 50 | AK41: 50 | AL41: 0
B42: 5 | C42: 5.139657974 | D42: 290.8917542 | F42: 38 | G42: 5.075595856 | H42: 834.6300906 | J42: 31 | X42: -5000 | Y42: 0 | Z42: 0 | AE42: 1500 | AF42: 0.535 | AJ42: 0 | AK42: 0 | AL42: 0
B43: 32 | C43: 6.566431522 | D43: 403.2728149 | F43: 35 | G43: 5.868963242 | H43: 629.899376 | J43: 32 | X43: -4500 | Y43: 1000 | Z43: 0 | AE43: 1550 | AF43: 0.549 | AJ43: -50 | AK43: -50 | AL43: 0
B44: 32 | C44: 6.566431522 | D44: 403.2728149 | F44: 38 | G44: 5.075595856 | H44: 834.6300906 | J44: 33 | X44: -4000 | Y44: 2000 | Z44: 0 | AE44: 1600 | AF44: 0.57 | AJ44: -100 | AK44: -100 | AL44: 0
B45: 2 | C45: 5.415548563 | D45: 951.0459198 | F45: 50 | G45: 6.372425079 | H45: 1578.153912 | J45: 34 | X45: -3500 | Y45: 3000 | Z45: 0 | AE45: 1650 | AF45: 0.582 | AJ45: -150 | AK45: -150 | AL45: 0
B46: 13 | C46: 7.190731049 | D46: 365.224439 | F46: 15 | G46: 6.398813248 | H46: 526.9806161 | J46: 35 | X46: -3000 | Y46: 4000 | Z46: 0 | AE46: 1700 | AF46: 0.595 | AJ46: -200 | AK46: -200 | AL46: 0
B47: 47 | C47: 6.32237339 | D47: 950.4031951 | F47: 16 | G47: 7.291055679 | H47: 943.2144344 | J47: 36 | X47: -2500 | Y47: 5000 | Z47: 0 | AE47: 1750 | AF47: 0.61 | AJ47: -250 | AK47: -250 | AL47: 0
B48: 46 | C48: 5.06606245 | D48: 345.6724129 | F48: 23 | G48: 6.912416458 | H48: 810.1689506 | J48: 37 | X48: -2000 | Y48: 6000 | Z48: 0 | AE48: 1800 | AF48: 0.623 | AJ48: -300 | AK48: -300 | AL48: 0
B49: 24 | C49: 6.984348297 | D49: 283.4351452 | F49: 17 | G49: 6.429294586 | H49: 1316.924378 | J49: 38 | X49: -1500 | Y49: 7000 | Z49: 0 | AE49: 1850 | AF49: 0.638 | AJ49: -350 | AK49: -350 | AL49: 0
B50: 25 | C50: 5.574762344 | D50: 917.3130463 | F50: 7 | G50: 6.077037811 | H50: 1457.951623 | J50: 39 | X50: -1000 | Y50: 8000 | Z50: 0 | AE50: 1900 | AF50: 0.652 | AJ50: -400 | AK50: -400 | AL50: 0
B51: 1 | C51: 5.909207344 | D51: 801.3622719 | F51: 36 | G51: 5.152415276 | H51: 456.6470022 | J51: 40 | X51: -500 | Y51: 9000 | Z51: 0 | AE51: 1950 | AF51: 0.662 | AJ51: -450 | AK51: -450 | AL51: 0
B52: 21 | C52: 5.656487465 | D52: 1016.05834 | F52: 17 | G52: 6.429294586 | H52: 1316.924378 | J52: 41 | X52: 0 | Y52: 10000 | Z52: 0 | AE52: 2000 | AF52: 0.671 | AJ52: -500 | AK52: -500 | AL52: 0
B53: 31 | C53: 6.152977943 | D53: 229.1617044 | F53: 40 | G53: 3.7 | H53: 296.4930307 | J53: 42 | X53: 500 | Y53: 11000 | Z53: 0 | AE53: 2050 | AF53: 0.678 | AJ53: -550 | AK53: -550 | AL53: 0
B54: 28 | C54: 6.272904873 | D54: 171.2148856 | F54: 42 | G54: 5.219213486 | H54: 740.2935072 | J54: 43 | X54: 1000 | Y54: 12000 | Z54: 0 | AE54: 2100 | AF54: 0.69 | AJ54: -600 | AK54: -600 | AL54: 0
B55: 48 | C55: 6.383476257 | D55: 657.8009054 | F55: 17 | G55: 6.429294586 | H55: 1316.924378 | J55: 44 | X55: 1500 | Y55: 13000 | Z55: 0 | AE55: 2150 | AF55: 0.698 | AJ55: -650 | AK55: -650 | AL55: 0
B56: 46 | C56: 5.06606245 | D56: 345.6724129 | F56: 48 | G56: 7.270711899 | H56: 1326.701121 | J56: 45 | X56: 2000 | Y56: 14000 | Z56: 0 | AE56: 2200 | AF56: 0.704 | AJ56: -700 | AK56: -700 | AL56: 0
B57: 46 | C57: 5.06606245 | D57: 345.6724129 | F57: 6 | G57: 4.8 | H57: 1700.207647 | J57: 46 | X57: 2500 | Y57: 15000 | Z57: 0 | AE57: 2250 | AF57: 0.712 | AJ57: -750 | AK57: -750 | AL57: 0
B58: 2 | C58: 5.415548563 | D58: 951.0459198 | F58: 36 | G58: 5.152415276 | H58: 456.6470022 | J58: 47 | X58: 3000 | Y58: 16000 | Z58: 0 | AE58: 2300 | AF58: 0.721 | AJ58: -800 | AK58: -800 | AL58: 0
B59: 38 | C59: 6.475798607 | D59: 272.8854649 | F59: 42 | G59: 5.219213486 | H59: 740.2935072 | J59: 48 | X59: 3500 | Y59: 17000 | Z59: 0 | AE59: 2350 | AF59: 0.725 | AJ59: -850 | AK59: -850 | AL59: 0
B60: 26 | C60: 7.211258888 | D60: 1652.972378 | F60: 25 | G60: 6.68434906 | H60: 638.5988962 | J60: 49 | X60: 4000 | Y60: 18000 | Z60: 0 | AE60: 2400 | AF60: 0.733 | AJ60: -900 | AK60: -900 | AL60: 0
B61: 34 | C61: 5.923405886 | D61: 171.2388794 | F61: 30 | G61: 6.192615509 | H61: 593.384903 | J61: 50 | X61: 4500 | Y61: 19000 | Z61: 0 | AE61: 2450 | AF61: 0.738 | AJ61: -950 | AK61: -950 | AL61: 0
J62: 51 | X62: 5000 | Y62: 20000 | Z62: 0 | AE62: 2500 | AF62: 0.743 | AJ62: -1000 | AK62: -1000 | AL62: 0
J63: 52 | Y63: More | Z63: 0 | AE63: 2550 | AF63: 0.751 | AK63: More | AL63: 0
J64: 53 | AE64: 2600 | AF64: 0.756
J65: 54 | AE65: 2650 | AF65: 0.76
J66: 55 | AE66: 2700 | AF66: 0.763
J67: 56 | AE67: 2750 | AF67: 0.765
J68: 57 | AE68: 2800 | AF68: 0.77
J69: 58 | AE69: 2850 | AF69: 0.773
J70: 59 | AE70: 2900 | AF70: 0.778
J71: 60 | AE71: 2950 | AF71: 0.78
J72: 61 | AE72: 3000 | AF72: 0.784
J73: 62 | AE73: 3050 | AF73: 0.789
J74: 63 | AE74: 3100 | AF74: 0.797
J75: 64 | AE75: 3150 | AF75: 0.8
J76: 65 | AE76: 3200 | AF76: 0.801
J77: =J76+1 -> 66 | AE77: 3250 | AF77: 0.804
J78: 67 | AE78: 3300 | AF78: 0.809
J79: 68 | AE79: 3350 | AF79: 0.811
J80: 69 | AE80: 3400 | AF80: 0.814
J81: 70 | AE81: 3450 | AF81: 0.818
J82: 71 | AE82: 3500 | AF82: 0.819
J83: 72 | AE83: 3550 | AF83: 0.822
J84: 73 | AE84: 3600 | AF84: 0.826
J85: 74 | AE85: 3650 | AF85: 0.833
J86: 75 | AE86: 3700 | AF86: 0.833
J87: 76 | AE87: 3750 | AF87: 0.837
J88: 77 | AE88: 3800 | AF88: 0.837
J89: 78 | AE89: 3850 | AF89: 0.838
J90: 79 | AE90: 3900 | AF90: 0.84
J91: 80 | AE91: 3950 | AF91: 0.842
J92: 81 | AE92: 4000 | AF92: 0.845
J93: 82 | AE93: 4050 | AF93: 0.848
J94: 83 | AE94: 4100 | AF94: 0.849
J95: 84 | AE95: 4150 | AF95: 0.85
J96: 85 | AE96: 4200 | AF96: 0.853
J97: 86 | AE97: 4250 | AF97: 0.853
J98: 87 | AE98: 4300 | AF98: 0.855
J99: 88 | AE99: 4350 | AF99: 0.856
J100: 89 | AE100: 4400 | AF100: 0.856
J101: 90 | AE101: 4450 | AF101: 0.857
J102: 91 | AE102: 4500 | AF102: 0.859
J103: 92 | AE103: 4550 | AF103: 0.86
J104: 93 | AE104: 4600 | AF104: 0.862
J105: 94 | AE105: 4650 | AF105: 0.863
J106: 95 | AE106: 4700 | AF106: 0.863
J107: 96 | AE107: 4750 | AF107: 0.863
J108: 97 | AE108: 4800 | AF108: 0.865
J109: 98 | AE109: 4850 | AF109: 0.867
J110: 99 | AE110: 4900 | AF110: 0.867
J111: 100 | AE111: 4950 | AF111: 0.867
J112: 101 | AE112: 5000 | AF112: 0.868
J113: 102
J114: 103
J115: 104
J116: 105
J117: 106
J118: 107
J119: 108
J120: 109
J121: 110
J122: 111
J123: 112
J124: 113
J125: 114
J126: 115
J127: 116
J128: 117
J129: 118
J130: 119
J131: 120
J132: 121
J133: 122
J134: 123
J135: 124
J136: 125
J137: 126
J138: 127
J139: 128
J140: 129
J141: =J140+1 -> 130
J142: 131
J143: 132
J144: 133
J145: 134
J146: 135
J147: 136
J148: 137
J149: 138
J150: 139
J151: 140
J152: 141
J153: 142
J154: 143
J155: 144
J156: 145
J157: 146
J158: 147
J159: 148
J160: 149
J161: 150
J162: 151
J163: 152
J164: 153
J165: 154
J166: 155
J167: 156
J168: 157
J169: 158
J170: 159
J171: 160
J172: 161
J173: 162
J174: 163
J175: 164
J176: 165
J177: 166
J178: 167
J179: 168
J180: 169
J181: 170
J182: 171
J183: 172
J184: 173
J185: 174
J186: 175
J187: 176
J188: 177
J189: 178
J190: 179
J191: 180
J192: 181
J193: 182
J194: 183
J195: 184
J196: 185
J197: 186
J198: 187
J199: 188
J200: 189
J201: 190
J202: 191
J203: 192
... 808 more rows

Sheet Parametric
A1: Parametric uncertainty analysis
A5: Parametric CEA curve
A6: Threshold | B6: NB | C6: seNB | D6: z | E6: pCE
A8: 0
A9: 50
A10: 100
A11: 150
A12: 200
A13: 250
A14: 300
A15: 350
A16: 400
A17: 450
A18: 500
A19: 550
A20: 600
A21: 650
A22: 700
A23: 750
A24: 800
A25: 850
A26: 900
A27: 950
A28: 1000
A29: 1050
A30: 1100
A31: 1150
A32: 1200
A33: 1250
A34: 1300
A35: 1350
A36: 1400
A37: 1450
A38: 1500
A39: 1550
A40: 1600
A41: 1650
A42: 1700
A43: 1750
A44: 1800
A45: 1850
A46: 1900
A47: 1950
A48: 2000
A49: 2050
A50: 2100
A51: 2150
A52: 2200
A53: 2250
A54: 2300
A55: 2350
A56: 2400
A57: 2450
A58: 2500
A59: 2550
A60: 2600
A61: 2650
A62: 2700
A63: 2750
A64: 2800
A65: 2850
A66: 2900
A67: 2950
A68: 3000
A69: 3050
A70: 3100
A71: 3150
A72: 3200
A73: 3250
A74: 3300
A75: 3350
A76: 3400
A77: 3450
A78: 3500
A79: 3550
A80: 3600
A81: 3650
A82: 3700
A83: 3750
A84: 3800
A85: 3850
A86: 3900
A87: 3950
A88: 4000
A89: 4050
A90: 4100
A91: 4150
A92: 4200
A93: 4250
A94: 4300
A95: 4350
A96: 4400
A97: 4450
A98: 4500
A99: 4550
A100: 4600
A101: 4650
A102: 4700
A103: 4750
A104: 4800
A105: 4850
A106: 4900
A107: 4950
A108: 5000
